[Event "Titled Tuesday Blitz June 13 Early 2023"]
[White "Samaganova, Aleksandra"]
[Black "Alexanian, Nelli"]
[WhiteFideId "13800221"]
[BlackFideId "4170539"]
[WhiteElo "1858"]
[BlackElo "2035"]
[Result "1-0"]
[Round "6"]
[TimeControl "180+2"]
[Date "2023.06.13"]
[WhiteClock "0:00:02"]
[BlackClock "0:00:00"]
[Board "186"]

1. c4 {[%clk 0:03:00]}  c5 {[%clk 0:02:54]} 2. Nc3 {[%clk 0:02:58]}  Nc6 {[%clk 0:02:52]} 3. g3 {[%clk 0:02:57]}  e6 {[%clk 0:02:49]} 4. Bg2 {[%clk 0:02:57]}  Nf6 {[%clk 0:02:46]} 5. e4 {[%clk 0:02:57]}  d6 {[%clk 0:02:35]} 6. Nge2 {[%clk 0:02:56]}  h5 {[%clk 0:02:19]} 7. h3 {[%clk 0:02:54]}  h4 {[%clk 0:02:16]} 8. g4 {[%clk 0:02:53]}  e5 {[%clk 0:02:13]} 9. d3 {[%clk 0:02:44]}  Be6 {[%clk 0:02:10]} 10. Nd5 {[%clk 0:02:33]}  Be7 {[%clk 0:02:06]} 11. Nec3 {[%clk 0:02:29]}  Nd4 {[%clk 0:01:57]} 12. Be3 {[%clk 0:02:26]}  a6 {[%clk 0:01:45]} 13. a4 {[%clk 0:01:59]}  b6 {[%clk 0:01:41]} 14. Rb1 {[%clk 0:01:33]}  Rb8 {[%clk 0:01:32]} 15. b4 {[%clk 0:01:28]}  b5 {[%clk 0:01:29]} 16. axb5 {[%clk 0:01:18]}  axb5 {[%clk 0:01:27]} 17. Nxf6+ {[%clk 0:01:09]}  Bxf6 {[%clk 0:01:24]} 18. Bxd4 {[%clk 0:01:07]}  cxb4 {[%clk 0:00:55]} 19. Ba7 {[%clk 0:00:38]}  Qa5 {[%clk 0:00:42]} 20. Bxb8 {[%clk 0:00:29]}  bxc3 {[%clk 0:00:41]} 21. Rxb5 {[%clk 0:00:09]}  Qa2 {[%clk 0:00:40]} 22. O-O {[%clk 0:00:07]}  O-O {[%clk 0:00:26]} 23. Bxd6 {[%clk 0:00:07]}  Bg5 {[%clk 0:00:23]} 24. f4 {[%clk 0:00:02]}  Bxf4 {[%clk 0:00:19]} 25. Rxf4 {[%clk 0:00:02]}  exf4 {[%clk 0:00:18]} 26. Bxf8 {[%clk 0:00:02]}  c2 {[%clk 0:00:16]} 27. Qc1 {[%clk 0:00:02]}  Kxf8 {[%clk 0:00:10]} 28. Rb2 {[%clk 0:00:02]}  Qa3 {[%clk 0:00:08]} 29. Rxc2 {[%clk 0:00:02]}  Qxd3 {[%clk 0:00:07]} 30. Qd2 {[%clk 0:00:02]}  Qg3 {[%clk 0:00:04]} 31. Qf2 {[%clk 0:00:02]}  f3 {[%clk 0:00:03]} 32. Qxg3 {[%clk 0:00:02]}  hxg3 {[%clk 0:00:00]} 33. Bxf3 {[%clk 0:00:02]} 1-0


[Site "https://www.chess.com"]

[Event "Titled Tuesday Blitz June 13 Early 2023"]
[White "Vargas, Mauricio"]
[Black "Fudalej, Michal"]
[WhiteFideId "4404572"]
[BlackFideId "1118781"]
[WhiteElo "1986"]
[BlackElo "2088"]
[Result "1-0"]
[Round "6"]
[TimeControl "180+2"]
[Date "2023.06.13"]
[WhiteClock "0:01:10"]
[BlackClock "0:00:00"]
[Board "191"]

1. e4 {[%clk 0:03:00]}  c6 {[%clk 0:02:54]} 2. Nc3 {[%clk 0:02:53]}  d5 {[%clk 0:02:55]} 3. d3 {[%clk 0:02:52]}  g6 {[%clk 0:02:54]} 4. g3 {[%clk 0:02:50]}  Bg7 {[%clk 0:02:25]} 5. Bg2 {[%clk 0:02:49]}  Nf6 {[%clk 0:02:20]} 6. e5 {[%clk 0:02:47]}  Nfd7 {[%clk 0:02:20]} 7. f4 {[%clk 0:02:47]}  d4 {[%clk 0:02:02]} 8. Ne4 {[%clk 0:02:47]}  c5 {[%clk 0:01:59]} 9. Nf3 {[%clk 0:02:46]}  Nc6 {[%clk 0:01:59]} 10. O-O {[%clk 0:02:45]}  b6 {[%clk 0:01:51]} 11. e6 {[%clk 0:02:42]}  fxe6 {[%clk 0:01:49]} 12. Neg5 {[%clk 0:02:40]}  Nf8 {[%clk 0:01:21]} 13. Ne5 {[%clk 0:02:39]}  Nxe5 {[%clk 0:01:20]} 14. Bxa8 {[%clk 0:02:38]}  Nf7 {[%clk 0:01:09]} 15. Bc6+ {[%clk 0:02:35]}  Bd7 {[%clk 0:01:09]} 16. Qf3 {[%clk 0:02:21]}  h6 {[%clk 0:00:44]} 17. Bxd7+ {[%clk 0:01:58]}  Qxd7 {[%clk 0:00:41]} 18. Qa8+ {[%clk 0:01:55]}  Qd8 {[%clk 0:00:17]} 19. Qxd8+ {[%clk 0:01:54]}  Nxd8 {[%clk 0:00:18]} 20. Ne4 {[%clk 0:01:52]}  Nd7 {[%clk 0:00:18]} 21. Bd2 {[%clk 0:01:51]}  Kf7 {[%clk 0:00:18]} 22. a4 {[%clk 0:01:49]}  Nc6 {[%clk 0:00:18]} 23. a5 {[%clk 0:01:47]}  b5 {[%clk 0:00:18]} 24. h4 {[%clk 0:01:36]}  a6 {[%clk 0:00:14]} 25. c3 {[%clk 0:01:34]}  dxc3 {[%clk 0:00:06]} 26. bxc3 {[%clk 0:01:33]}  Rd8 {[%clk 0:00:03]} 27. Be3 {[%clk 0:01:26]}  c4 {[%clk 0:00:01]} 28. dxc4 {[%clk 0:01:21]}  bxc4 {[%clk 0:00:02]} 29. Rfd1 {[%clk 0:01:15]}  Ke8 {[%clk 0:00:00]} 30. Bb6 {[%clk 0:01:10]} 1-0


[Site "https://www.chess.com"]

[Event "Titled Tuesday Blitz June 13 Early 2023"]
[White "Georg, Heinz"]
[Black "Floresvillar Gonzalez, Luis Migu"]
[WhiteFideId "4607295"]
[BlackFideId "5100542"]
[WhiteElo "2316"]
[BlackElo "2040"]
[Result "1/2-1/2"]
[Round "6"]
[TimeControl "180+2"]
[Date "2023.06.13"]
[WhiteClock "0:00:17"]
[BlackClock "0:00:42"]
[Board "192"]

1. e4 {[%clk 0:03:00]}  c5 {[%clk 0:02:59]} 2. Nf3 {[%clk 0:03:00]}  e6 {[%clk 0:02:59]} 3. b3 {[%clk 0:03:00]}  d6 {[%clk 0:02:55]} 4. Bb2 {[%clk 0:02:59]}  Nf6 {[%clk 0:02:55]} 5. Bd3 {[%clk 0:02:59]}  Nc6 {[%clk 0:02:55]} 6. O-O {[%clk 0:02:59]}  Be7 {[%clk 0:02:55]} 7. Re1 {[%clk 0:02:57]}  O-O {[%clk 0:02:55]} 8. Nc3 {[%clk 0:02:53]}  e5 {[%clk 0:02:51]} 9. h3 {[%clk 0:02:51]}  Nd4 {[%clk 0:02:50]} 10. Nxd4 {[%clk 0:02:41]}  cxd4 {[%clk 0:02:50]} 11. Ne2 {[%clk 0:02:41]}  Be6 {[%clk 0:02:47]} 12. c3 {[%clk 0:02:41]}  dxc3 {[%clk 0:02:46]} 13. dxc3 {[%clk 0:02:41]}  d5 {[%clk 0:02:43]} 14. exd5 {[%clk 0:02:40]}  Nxd5 {[%clk 0:02:43]} 15. c4 {[%clk 0:02:31]}  Nf4 {[%clk 0:02:43]} 16. Be4 {[%clk 0:02:20]}  Qxd1 {[%clk 0:02:35]} 17. Raxd1 {[%clk 0:02:19]}  Bb4 {[%clk 0:02:21]} 18. Nc3 {[%clk 0:02:12]}  Rab8 {[%clk 0:02:06]} 19. a3 {[%clk 0:02:10]}  Bxc3 {[%clk 0:02:03]} 20. Bxc3 {[%clk 0:02:10]}  f6 {[%clk 0:02:03]} 21. Bb4 {[%clk 0:01:55]}  Rfd8 {[%clk 0:02:01]} 22. Rxd8+ {[%clk 0:01:51]}  Rxd8 {[%clk 0:02:00]} 23. Bxb7 {[%clk 0:01:49]}  a5 {[%clk 0:01:58]} 24. Bxa5 {[%clk 0:01:32]}  Rb8 {[%clk 0:01:58]} 25. Bd2 {[%clk 0:01:30]}  Rxb7 {[%clk 0:01:47]} 26. Bxf4 {[%clk 0:01:30]}  Rxb3 {[%clk 0:01:44]} 27. Be3 {[%clk 0:01:27]}  Bxc4 {[%clk 0:01:43]} 28. Ra1 {[%clk 0:01:24]}  Bd3 {[%clk 0:01:42]} 29. a4 {[%clk 0:01:22]}  Rb1+ {[%clk 0:01:42]} 30. Rxb1 {[%clk 0:01:21]}  Bxb1 {[%clk 0:01:42]} 31. Kf1 {[%clk 0:01:20]}  Bd3+ {[%clk 0:01:41]} 32. Ke1 {[%clk 0:01:20]}  e4 {[%clk 0:01:40]} 33. Kd2 {[%clk 0:01:20]}  Kf7 {[%clk 0:01:41]} 34. Kc3 {[%clk 0:01:21]}  Ke6 {[%clk 0:01:40]} 35. Kb4 {[%clk 0:01:21]}  Kd6 {[%clk 0:01:27]} 36. Bd4 {[%clk 0:01:17]}  h5 {[%clk 0:01:22]} 37. h4 {[%clk 0:01:15]}  Kd5 {[%clk 0:01:20]} 38. Bc3 {[%clk 0:01:14]}  Bf1 {[%clk 0:01:14]} 39. g3 {[%clk 0:01:14]}  Be2 {[%clk 0:01:03]} 40. a5 {[%clk 0:00:59]}  Bd3 {[%clk 0:00:56]} 41. Bb2 {[%clk 0:00:55]}  Bf1 {[%clk 0:00:54]} 42. Kc3 {[%clk 0:00:49]}  Ba6 {[%clk 0:00:53]} 43. Kd2 {[%clk 0:00:46]}  Ke6 {[%clk 0:00:50]} 44. Ke3 {[%clk 0:00:45]}  Kf5 {[%clk 0:00:48]} 45. Kd4 {[%clk 0:00:43]}  g5 {[%clk 0:00:48]} 46. Kd5 {[%clk 0:00:38]}  gxh4 {[%clk 0:00:47]} 47. gxh4 {[%clk 0:00:38]}  Kg4 {[%clk 0:00:47]} 48. Bxf6 {[%clk 0:00:37]}  Kf3 {[%clk 0:00:47]} 49. Bd4 {[%clk 0:00:36]}  Bb7+ {[%clk 0:00:44]} 50. Kc5 {[%clk 0:00:33]}  Kg4 {[%clk 0:00:44]} 51. Kb6 {[%clk 0:00:32]}  Bd5 {[%clk 0:00:42]} 52. Bf6 {[%clk 0:00:17]}  Kf3 {[%clk 0:00:42]} 53. Bd4 {[%clk 0:00:17]}  Kg4 {[%clk 0:00:42]} 54. Bf6 {[%clk 0:00:16]}  Kf3 {[%clk 0:00:42]} 55. Bd4 {[%clk 0:00:17]}  Kg4 {[%clk 0:00:42]} 1/2-1/2


[Site "https://www.chess.com"]

[Event "Titled Tuesday Blitz June 13 Early 2023"]
[White "Novikova, Margarita"]
[Black "Tsukerman, Julia"]
[WhiteFideId "14109689"]
[BlackFideId "2621649"]
[WhiteElo "2013"]
[BlackElo "1667"]
[Result "1-0"]
[Round "6"]
[TimeControl "180+2"]
[Date "2023.06.13"]
[WhiteClock "0:01:22"]
[BlackClock "0:00:07"]
[Board "194"]

1. e4 {[%clk 0:03:00]}  c5 {[%clk 0:02:57]} 2. Nc3 {[%clk 0:03:00]}  Nc6 {[%clk 0:02:54]} 3. d3 {[%clk 0:03:01]}  g6 {[%clk 0:02:47]} 4. Be3 {[%clk 0:03:01]}  Nd4 {[%clk 0:02:46]} 5. Qd2 {[%clk 0:02:58]}  Bg7 {[%clk 0:02:46]} 6. Nd1 {[%clk 0:02:58]}  d6 {[%clk 0:02:44]} 7. c3 {[%clk 0:02:59]}  Nc6 {[%clk 0:02:39]} 8. g3 {[%clk 0:02:55]}  e6 {[%clk 0:02:30]} 9. Bg2 {[%clk 0:02:54]}  Nge7 {[%clk 0:02:25]} 10. Bh6 {[%clk 0:02:51]}  O-O {[%clk 0:02:24]} 11. h4 {[%clk 0:02:51]}  f5 {[%clk 0:02:10]} 12. h5 {[%clk 0:02:49]}  Rf7 {[%clk 0:02:06]} 13. hxg6 {[%clk 0:02:48]}  Nxg6 {[%clk 0:02:01]} 14. exf5 {[%clk 0:02:45]}  exf5 {[%clk 0:01:55]} 15. Bd5 {[%clk 0:02:42]}  Qe8+ {[%clk 0:01:50]} 16. Qe2 {[%clk 0:02:40]}  Bd7 {[%clk 0:01:30]} 17. Bxf7+ {[%clk 0:02:34]}  Qxf7 {[%clk 0:01:28]} 18. Bxg7 {[%clk 0:02:30]}  Kxg7 {[%clk 0:01:22]} 19. Ne3 {[%clk 0:02:27]}  Re8 {[%clk 0:01:20]} 20. Qh5 {[%clk 0:02:24]}  Kg8 {[%clk 0:01:11]} 21. O-O-O {[%clk 0:02:21]}  b5 {[%clk 0:01:06]} 22. Nf3 {[%clk 0:02:19]}  Re7 {[%clk 0:01:00]} 23. Kb1 {[%clk 0:02:18]}  Be6 {[%clk 0:00:53]} 24. Ng5 {[%clk 0:02:09]}  Bxa2+ {[%clk 0:00:46]} 25. Ka1 {[%clk 0:02:09]}  Qb3 {[%clk 0:00:36]} 26. Nxh7 {[%clk 0:02:06]}  Rg7 {[%clk 0:00:25]} 27. Qxf5 {[%clk 0:01:49]}  Qa4 {[%clk 0:00:18]} 28. Qc8+ {[%clk 0:01:38]}  Kf7 {[%clk 0:00:16]} 29. Ng5+ {[%clk 0:01:38]}  Kf6 {[%clk 0:00:14]} 30. Ne4+ {[%clk 0:01:36]}  Kf7 {[%clk 0:00:10]} 31. Qd7+ {[%clk 0:01:28]}  Kg8 {[%clk 0:00:08]} 32. Qe8+ {[%clk 0:01:22]}  Nf8 {[%clk 0:00:07]} 33. Nf6# {[%clk 0:01:22]} 1-0


[Site "https://www.chess.com"]

[Event "Titled Tuesday Blitz June 13 Early 2023"]
[White "De Souza, Cristiano Gomes"]
[Black "Omariev, Maksim"]
[WhiteFideId "2151758"]
[BlackFideId "4193423"]
[WhiteElo "2068"]
[BlackElo "2378"]
[Result "1-0"]
[Round "6"]
[TimeControl "180+2"]
[Date "2023.06.13"]
[WhiteClock "0:01:01"]
[BlackClock "0:00:00"]
[Board "197"]

1. d4 {[%clk 0:03:00]}  d5 {[%clk 0:02:45]} 2. c4 {[%clk 0:02:59]}  e6 {[%clk 0:02:45]} 3. Nf3 {[%clk 0:02:58]}  Nf6 {[%clk 0:02:45]} 4. Nc3 {[%clk 0:02:58]}  Be7 {[%clk 0:02:41]} 5. Bg5 {[%clk 0:02:58]}  O-O {[%clk 0:02:35]} 6. e3 {[%clk 0:02:53]}  h6 {[%clk 0:02:34]} 7. Bh4 {[%clk 0:02:53]}  b6 {[%clk 0:02:29]} 8. Rc1 {[%clk 0:02:51]}  Bb7 {[%clk 0:02:28]} 9. Be2 {[%clk 0:02:41]}  Nbd7 {[%clk 0:02:18]} 10. O-O {[%clk 0:02:38]}  c5 {[%clk 0:02:17]} 11. cxd5 {[%clk 0:02:37]}  Nxd5 {[%clk 0:02:17]} 12. Bxe7 {[%clk 0:02:37]}  Qxe7 {[%clk 0:02:18]} 13. dxc5 {[%clk 0:02:37]}  Nxc5 {[%clk 0:02:17]} 14. Nxd5 {[%clk 0:02:35]}  Bxd5 {[%clk 0:02:18]} 15. b3 {[%clk 0:02:35]}  Rfd8 {[%clk 0:02:18]} 16. Qc2 {[%clk 0:02:33]}  Rac8 {[%clk 0:02:17]} 17. Qb2 {[%clk 0:02:32]}  a6 {[%clk 0:01:52]} 18. Rfd1 {[%clk 0:02:30]}  b5 {[%clk 0:01:52]} 19. Qa3 {[%clk 0:02:25]}  Kf8 {[%clk 0:01:34]} 20. Nd4 {[%clk 0:02:18]}  Ke8 {[%clk 0:01:04]} 21. f3 {[%clk 0:02:02]}  Bb7 {[%clk 0:00:56]} 22. Qb4 {[%clk 0:01:55]}  Nd7 {[%clk 0:00:53]} 23. Qxe7+ {[%clk 0:01:52]}  Kxe7 {[%clk 0:00:54]} 24. Kf2 {[%clk 0:01:47]}  g6 {[%clk 0:00:51]} 25. Rxc8 {[%clk 0:01:42]}  Rxc8 {[%clk 0:00:50]} 26. Rd2 {[%clk 0:01:43]}  e5 {[%clk 0:00:49]} 27. Nc2 {[%clk 0:01:39]}  f5 {[%clk 0:00:46]} 28. Nb4 {[%clk 0:01:37]}  Nb6 {[%clk 0:00:30]} 29. Rc2 {[%clk 0:01:33]}  a5 {[%clk 0:00:24]} 30. Rxc8 {[%clk 0:01:31]}  Nxc8 {[%clk 0:00:24]} 31. Nd3 {[%clk 0:01:28]}  Kd6 {[%clk 0:00:20]} 32. f4 {[%clk 0:01:22]}  exf4 {[%clk 0:00:14]} 33. exf4 {[%clk 0:01:21]}  g5 {[%clk 0:00:07]} 34. g3 {[%clk 0:01:18]}  Ne7 {[%clk 0:00:02]} 35. fxg5 {[%clk 0:01:16]}  hxg5 {[%clk 0:00:02]} 36. h4 {[%clk 0:01:17]}  gxh4 {[%clk 0:00:02]} 37. gxh4 {[%clk 0:01:17]}  Bc6 {[%clk 0:00:02]} 38. h5 {[%clk 0:01:16]}  Ke6 {[%clk 0:00:03]} 39. Nf4+ {[%clk 0:01:15]}  Kf6 {[%clk 0:00:02]} 40. Ke3 {[%clk 0:01:15]}  Kg5 {[%clk 0:00:02]} 41. Ne6+ {[%clk 0:01:12]}  Kh6 {[%clk 0:00:02]} 42. Nd4 {[%clk 0:01:12]}  Bd7 {[%clk 0:00:02]} 43. Kf4 {[%clk 0:01:08]}  Nd5+ {[%clk 0:00:02]} 44. Ke5 {[%clk 0:01:07]}  Nc3 {[%clk 0:00:03]} 45. Bf3 {[%clk 0:01:04]}  Nxa2 {[%clk 0:00:03]} 46. Nxf5+ {[%clk 0:01:03]}  Bxf5 {[%clk 0:00:03]} 47. Kxf5 {[%clk 0:01:03]}  Nc1 {[%clk 0:00:04]} 48. Bd5 {[%clk 0:01:03]}  Kxh5 {[%clk 0:00:03]} 49. Ke5 {[%clk 0:01:03]}  Nd3+ {[%clk 0:00:02]} 50. Kd4 {[%clk 0:01:02]}  Nb4 {[%clk 0:00:02]} 51. Be6 {[%clk 0:01:01]}  Kg5 {[%clk 0:00:00]} 52. Kc5 {[%clk 0:01:01]} 1-0


[Site "https://www.chess.com"]

[Event "Titled Tuesday Blitz June 13 Early 2023"]
[White "Corredor Castellanos, Camilo"]
[Black "Winkels, Marcel"]
[WhiteFideId "4425871"]
[BlackFideId "1003887"]
[WhiteElo "1994"]
[BlackElo "1900"]
[Result "1-0"]
[Round "6"]
[TimeControl "180+2"]
[Date "2023.06.13"]
[WhiteClock "0:00:41"]
[BlackClock "0:00:00"]
[Board "198"]

1. e4 {[%clk 0:03:00]}  Nf6 {[%clk 0:02:58]} 2. Nc3 {[%clk 0:02:58]}  d5 {[%clk 0:02:56]} 3. e5 {[%clk 0:02:54]}  Nfd7 {[%clk 0:02:55]} 4. d4 {[%clk 0:02:53]}  c5 {[%clk 0:02:56]} 5. Nxd5 {[%clk 0:02:52]}  cxd4 {[%clk 0:02:47]} 6. Qxd4 {[%clk 0:02:41]}  Nc6 {[%clk 0:02:43]} 7. Qc3 {[%clk 0:02:41]}  Ndxe5 {[%clk 0:02:42]} 8. Nf4 {[%clk 0:02:30]}  e6 {[%clk 0:02:41]} 9. a3 {[%clk 0:02:29]}  Be7 {[%clk 0:02:34]} 10. Be3 {[%clk 0:02:29]}  Bf6 {[%clk 0:02:31]} 11. Qb3 {[%clk 0:02:23]}  O-O {[%clk 0:02:24]} 12. Be2 {[%clk 0:02:21]}  Nd4 {[%clk 0:02:18]} 13. Qa4 {[%clk 0:02:09]}  Nxe2 {[%clk 0:02:13]} 14. Ngxe2 {[%clk 0:02:10]}  Bd7 {[%clk 0:02:12]} 15. Qb3 {[%clk 0:02:09]}  Bc6 {[%clk 0:02:09]} 16. O-O {[%clk 0:02:09]}  Ng4 {[%clk 0:02:06]} 17. Bc5 {[%clk 0:02:05]}  Re8 {[%clk 0:01:48]} 18. Rad1 {[%clk 0:02:06]}  Qc7 {[%clk 0:01:46]} 19. h3 {[%clk 0:02:06]}  Ne5 {[%clk 0:01:43]} 20. Bd6 {[%clk 0:02:02]}  Qb6 {[%clk 0:01:41]} 21. Qg3 {[%clk 0:01:44]}  Ng6 {[%clk 0:01:26]} 22. b3 {[%clk 0:01:36]}  Nxf4 {[%clk 0:01:14]} 23. Nxf4 {[%clk 0:01:33]}  g6 {[%clk 0:01:14]} 24. h4 {[%clk 0:01:32]}  Bg7 {[%clk 0:01:13]} 25. h5 {[%clk 0:01:32]}  Rac8 {[%clk 0:00:56]} 26. hxg6 {[%clk 0:01:33]}  hxg6 {[%clk 0:00:54]} 27. c4 {[%clk 0:01:32]}  Be4 {[%clk 0:00:41]} 28. c5 {[%clk 0:01:18]}  Qa6 {[%clk 0:00:38]} 29. b4 {[%clk 0:01:16]}  e5 {[%clk 0:00:34]} 30. Nd5 {[%clk 0:01:13]}  Bxd5 {[%clk 0:00:33]} 31. Rxd5 {[%clk 0:01:14]}  e4 {[%clk 0:00:27]} 32. Re1 {[%clk 0:01:10]}  Qc4 {[%clk 0:00:23]} 33. Rdd1 {[%clk 0:01:04]}  a5 {[%clk 0:00:19]} 34. Rc1 {[%clk 0:01:02]}  Qe6 {[%clk 0:00:17]} 35. Rb1 {[%clk 0:01:01]}  axb4 {[%clk 0:00:16]} 36. Rxb4 {[%clk 0:01:01]}  Qd7 {[%clk 0:00:13]} 37. Rbxe4 {[%clk 0:01:01]}  Rxe4 {[%clk 0:00:12]} 38. Rxe4 {[%clk 0:01:02]}  b6 {[%clk 0:00:12]} 39. cxb6 {[%clk 0:01:00]}  Qb5 {[%clk 0:00:10]} 40. Bc7 {[%clk 0:00:48]}  Qc6 {[%clk 0:00:09]} 41. Re1 {[%clk 0:00:46]}  Ra8 {[%clk 0:00:08]} 42. Qd6 {[%clk 0:00:44]}  Qc3 {[%clk 0:00:05]} 43. Re3 {[%clk 0:00:41]}  Qa1+ {[%clk 0:00:04]} 44. Kh2 {[%clk 0:00:41]}  Qf6 {[%clk 0:00:02]} 45. Qxf6 {[%clk 0:00:41]}  Bxf6 {[%clk 0:00:00]} 46. b7 {[%clk 0:00:41]} 1-0


[Site "https://www.chess.com"]

[Event "Titled Tuesday Blitz June 13 Early 2023"]
[White "Lakshmi C"]
[Black "Rodriguez Santiago, Jaime"]
[WhiteFideId "25035347"]
[BlackFideId "3100898"]
[WhiteElo "1942"]
[BlackElo "2025"]
[Result "0-1"]
[Round "6"]
[TimeControl "180+2"]
[Date "2023.06.13"]
[WhiteClock "0:00:00"]
[BlackClock "0:00:22"]
[Board "199"]

1. e4 {[%clk 0:03:00]}  c6 {[%clk 0:02:57]} 2. Nc3 {[%clk 0:02:59]}  d5 {[%clk 0:02:57]} 3. Nf3 {[%clk 0:02:59]}  dxe4 {[%clk 0:02:57]} 4. Nxe4 {[%clk 0:02:59]}  Nf6 {[%clk 0:02:58]} 5. Ng3 {[%clk 0:02:58]}  h5 {[%clk 0:02:58]} 6. h4 {[%clk 0:02:55]}  c5 {[%clk 0:02:57]} 7. d4 {[%clk 0:02:50]}  Bg4 {[%clk 0:02:54]} 8. Be3 {[%clk 0:02:43]}  cxd4 {[%clk 0:02:48]} 9. Bb5+ {[%clk 0:02:12]}  Nc6 {[%clk 0:02:47]} 10. Bxc6+ {[%clk 0:01:41]}  bxc6 {[%clk 0:02:45]} 11. Qxd4 {[%clk 0:01:41]}  Bxf3 {[%clk 0:02:31]} 12. gxf3 {[%clk 0:01:34]}  e6 {[%clk 0:02:30]} 13. Qc4 {[%clk 0:00:52]}  Qd5 {[%clk 0:02:15]} 14. Qe2 {[%clk 0:00:48]}  Be7 {[%clk 0:02:06]} 15. O-O {[%clk 0:00:45]}  O-O {[%clk 0:01:49]} 16. Rfd1 {[%clk 0:00:44]}  Qa5 {[%clk 0:01:48]} 17. Bg5 {[%clk 0:00:41]}  Rfe8 {[%clk 0:01:42]} 18. f4 {[%clk 0:00:32]}  g6 {[%clk 0:01:32]} 19. Ne4 {[%clk 0:00:19]}  Nxe4 {[%clk 0:01:08]} 20. Qxe4 {[%clk 0:00:18]}  Bxg5 {[%clk 0:01:07]} 21. fxg5 {[%clk 0:00:17]}  Rab8 {[%clk 0:00:58]} 22. Qxc6 {[%clk 0:00:15]}  Rec8 {[%clk 0:00:57]} 23. Qe4 {[%clk 0:00:14]}  Rb4 {[%clk 0:00:55]} 24. Rd4 {[%clk 0:00:07]}  Rxb2 {[%clk 0:00:50]} 25. c4 {[%clk 0:00:05]}  Rxa2 {[%clk 0:00:32]} 26. Rad1 {[%clk 0:00:05]}  Ra1 {[%clk 0:00:28]} 27. Qb7 {[%clk 0:00:03]}  Rxd1+ {[%clk 0:00:26]} 28. Rxd1 {[%clk 0:00:03]}  Qc7 {[%clk 0:00:23]} 29. Rd7 {[%clk 0:00:00]}  Qxb7 {[%clk 0:00:22]} 0-1


[Site "https://www.chess.com"]

[Event "Titled Tuesday Blitz June 13 Early 2023"]
[White "Torres Dominguez, David"]
[Black "Al Mukhaini, Shima"]
[WhiteFideId "2220857"]
[BlackFideId "22005854"]
[WhiteElo "1999"]
[BlackElo "2242"]
[Result "0-1"]
[Round "6"]
[TimeControl "180+2"]
[Date "2023.06.13"]
[WhiteClock "0:00:00"]
[BlackClock "0:00:24"]
[Board "200"]

1. e4 {[%clk 0:01:35]}  d5 {[%clk 0:02:58]} 2. d3 {[%clk 0:01:35]}  dxe4 {[%clk 0:02:55]} 3. dxe4 {[%clk 0:01:36]}  Qxd1+ {[%clk 0:02:53]} 4. Kxd1 {[%clk 0:01:37]}  Nf6 {[%clk 0:02:51]} 5. f3 {[%clk 0:01:37]}  e5 {[%clk 0:02:36]} 6. Be3 {[%clk 0:01:38]}  Nfd7 {[%clk 0:02:28]} 7. Nd2 {[%clk 0:01:39]}  Bc5 {[%clk 0:02:24]} 8. Ke2 {[%clk 0:01:38]}  Bxe3 {[%clk 0:02:23]} 9. Kxe3 {[%clk 0:01:39]}  O-O {[%clk 0:02:20]} 10. Nb3 {[%clk 0:01:37]}  a5 {[%clk 0:02:12]} 11. a4 {[%clk 0:01:37]}  b6 {[%clk 0:02:10]} 12. Nh3 {[%clk 0:01:34]}  Na6 {[%clk 0:01:48]} 13. Bxa6 {[%clk 0:01:31]}  Bxa6 {[%clk 0:01:46]} 14. Nf2 {[%clk 0:01:31]}  Rad8 {[%clk 0:01:42]} 15. Rhd1 {[%clk 0:01:30]}  Bc4 {[%clk 0:01:38]} 16. Nd2 {[%clk 0:01:23]}  Be6 {[%clk 0:01:32]} 17. b3 {[%clk 0:01:23]}  Nc5 {[%clk 0:01:30]} 18. Nf1 {[%clk 0:01:23]}  f6 {[%clk 0:01:26]} 19. Rxd8 {[%clk 0:01:22]}  Rxd8 {[%clk 0:01:27]} 20. Rd1 {[%clk 0:01:21]}  Rxd1 {[%clk 0:01:25]} 21. Nxd1 {[%clk 0:01:22]}  Kf7 {[%clk 0:01:22]} 22. Nd2 {[%clk 0:01:22]}  Ke7 {[%clk 0:01:21]} 23. Nb2 {[%clk 0:01:21]}  Kd6 {[%clk 0:01:20]} 24. Nbc4+ {[%clk 0:01:19]}  Kd7 {[%clk 0:01:13]} 25. Nb2 {[%clk 0:01:14]}  Ke7 {[%clk 0:01:10]} 26. Nd3 {[%clk 0:01:15]}  Kd6 {[%clk 0:01:07]} 27. Nxc5 {[%clk 0:01:13]}  Kxc5 {[%clk 0:01:07]} 28. c3 {[%clk 0:01:14]}  c6 {[%clk 0:01:04]} 29. Kd3 {[%clk 0:01:13]}  b5 {[%clk 0:01:03]} 30. axb5 {[%clk 0:01:12]}  cxb5 {[%clk 0:01:04]} 31. Kc2 {[%clk 0:01:11]}  b4 {[%clk 0:00:59]} 32. cxb4+ {[%clk 0:01:09]}  Kxb4 {[%clk 0:00:59]} 33. Kb2 {[%clk 0:01:05]}  g5 {[%clk 0:00:53]} 34. g3 {[%clk 0:01:04]}  Bh3 {[%clk 0:00:44]} 35. f4 {[%clk 0:00:56]}  exf4 {[%clk 0:00:33]} 36. gxf4 {[%clk 0:00:57]}  gxf4 {[%clk 0:00:32]} 37. Nf3 {[%clk 0:00:54]}  Bg2 {[%clk 0:00:31]} 38. Ne1 {[%clk 0:00:53]}  Bxe4 {[%clk 0:00:28]} 39. h4 {[%clk 0:00:50]}  f3 {[%clk 0:00:26]} 40. Kc1 {[%clk 0:00:06]}  f2 {[%clk 0:00:24]} 41. Nc2+ {[%clk 0:00:04]}  Bxc2 {[%clk 0:00:23]} 42. Kxc2 {[%clk 0:00:00]}  f1=Q {[%clk 0:00:24]} 0-1


[Site "https://www.chess.com"]

[Event "Titled Tuesday Blitz June 13 Early 2023"]
[White "Kamsky, Gata"]
[Black "Carlsen, Magnus"]
[WhiteFideId "2000024"]
[BlackFideId "1503014"]
[WhiteElo "2660"]
[BlackElo "2858"]
[Result "1/2-1/2"]
[Round "7"]
[TimeControl "180+2"]
[Date "2023.06.13"]
[WhiteClock "0:00:25"]
[BlackClock "0:00:18"]
[Board "2"]

1. d4 {[%clk 0:03:00]}  d5 {[%clk 0:02:59]} 2. Bf4 {[%clk 0:02:58]}  c5 {[%clk 0:02:58]} 3. e3 {[%clk 0:02:58]}  cxd4 {[%clk 0:02:58]} 4. exd4 {[%clk 0:02:58]}  Nc6 {[%clk 0:02:59]} 5. c3 {[%clk 0:02:58]}  f6 {[%clk 0:02:58]} 6. Bb5 {[%clk 0:02:57]}  a6 {[%clk 0:02:54]} 7. Ba4 {[%clk 0:02:57]}  Bf5 {[%clk 0:02:51]} 8. Ne2 {[%clk 0:02:48]}  e6 {[%clk 0:02:49]} 9. Nd2 {[%clk 0:02:44]}  Bd6 {[%clk 0:02:39]} 10. Bxc6+ {[%clk 0:02:39]}  bxc6 {[%clk 0:02:38]} 11. Bxd6 {[%clk 0:02:39]}  Qxd6 {[%clk 0:02:39]} 12. Nb3 {[%clk 0:02:36]}  Ne7 {[%clk 0:02:39]} 13. Nc5 {[%clk 0:02:33]}  O-O {[%clk 0:02:39]} 14. O-O {[%clk 0:02:30]}  e5 {[%clk 0:02:39]} 15. Qd2 {[%clk 0:02:23]}  a5 {[%clk 0:02:32]} 16. a4 {[%clk 0:02:21]}  Bc8 {[%clk 0:02:30]} 17. Rfe1 {[%clk 0:02:16]}  Ng6 {[%clk 0:02:29]} 18. b4 {[%clk 0:02:14]}  e4 {[%clk 0:02:28]} 19. g3 {[%clk 0:01:08]}  Bg4 {[%clk 0:02:28]} 20. Nf4 {[%clk 0:01:06]}  Ne7 {[%clk 0:02:24]} 21. bxa5 {[%clk 0:01:00]}  g5 {[%clk 0:02:23]} 22. Ng2 {[%clk 0:00:57]}  Bf3 {[%clk 0:02:21]} 23. Reb1 {[%clk 0:00:48]}  Ng6 {[%clk 0:02:06]} 24. Rb7 {[%clk 0:00:46]}  Rxa5 {[%clk 0:02:03]} 25. Rab1 {[%clk 0:00:44]}  Rxc5 {[%clk 0:01:41]} 26. dxc5 {[%clk 0:00:44]}  Qe6 {[%clk 0:01:41]} 27. Rc7 {[%clk 0:00:25]}  Qh3 {[%clk 0:01:00]} 28. Ne1 {[%clk 0:00:25]}  Nf4 {[%clk 0:00:23]} 29. gxf4 {[%clk 0:00:24]}  Qg4+ {[%clk 0:00:23]} 30. Kf1 {[%clk 0:00:24]}  Qh3+ {[%clk 0:00:22]} 31. Kg1 {[%clk 0:00:24]}  Qg4+ {[%clk 0:00:17]} 32. Kf1 {[%clk 0:00:25]}  Qh3+ {[%clk 0:00:18]} 33. Kg1 {[%clk 0:00:25]} 1/2-1/2


[Site "https://www.chess.com"]